fUST/lending_fUST_20250929
["ID","MTS","AMOUNT","RATE_DAILY","PERIOD"]
[388383153,1759140632601,-1200.0,0.00025978,2]
[388383155,1759140632611,-1050.0,0.00025979,2]
[388383157,1759140632619,-300.0,0.00025979,2]
[388383159,1759140632629,-214.67,0.0002598,10]
[388383161,1759140632639,-335.16,0.0002598,10]
[388383163,1759140632648,-279.3,0.0002598,10]
[388383165,1759140632657,-4809.3906424,0.0002598,2]
[388383167,1759140632667,-267.86204088,0.00025989,2]
[388383171,1759140632676,-500.0,0.00025989,2]
[388383173,1759140632686,-188.93486347,0.00025989,2]
[388383176,1759140632695,-500.0,0.00025989,2]
[388383178,1759140632704,-343.72889385,0.00025989,2]
[388383180,1759140632713,-500.0,0.00025989,2]
[388383182,1759140632722,-500.0,0.00025989,2]
[388383184,1759140632731,-500.0,0.00025989,2]
[388383186,1759140632741,-500.0,0.00025989,2]
[388383188,1759140632750,-500.0,0.00025989,2]
[388383189,1759140632759,-500.0,0.00025989,2]
[388383191,1759140632768,-500.0,0.00025989,2]
[388383193,1759140632777,-500.0,0.00025989,2]
[388383195,1759140632786,-209.63229145,0.00025989,2]
[388383197,1759140632795,-209.63229145,0.00025989,2]
[388383199,1759140632805,-535.9915868,0.00025989,2]
[388383201,1759140632814,-209.63229145,0.00025989,2]
[388383203,1759140632823,-100000.0,0.0002599,2]
[388383205,1759140632832,-500.0,0.0002612,2]
[388383207,1759140632841,-168.0,0.00026495,2]
[388383209,1759140632851,-168.0,0.0002659,2]
[388383211,1759140632860,-4809.3906424,0.00026779,2]
[388383212,1759140632869,-19728.07558194,0.0002687,2]
[388383255,1759140638532,-4318.87763006,0.0002687,2]
[388383256,1759140638542,-500.0,0.00026873,2]
[388383257,1759140638553,-500.0,0.00026873,2]
[388383258,1759140638563,-500.0,0.00026873,2]
[388383259,1759140638571,-500.0,0.00026873,2]
[388383260,1759140638580,-500.0,0.00026873,2]
[388383261,1759140638589,-500.0,0.00026873,2]
[388383262,1759140638600,-362.32166532,0.00026873,2]
[388383263,1759140638609,-500.0,0.00026873,2]
[388383264,1759140638622,-500.0,0.00026873,2]
[388383265,1759140638632,-500.0,0.00026873,2]
[388383266,1759140638643,-500.0,0.00026873,2]
[388383267,1759140638657,-340.99905216,0.00026873,2]
[388383268,1759140638667,-500.0,0.00026873,2]
[388383269,1759140638678,-500.0,0.00026873,2]
[388383270,1759140638688,-500.0,0.00026873,2]
[388383271,1759140638697,-500.0,0.00026873,2]
[388383272,1759140638707,-500.0,0.00026873,2]
[388383273,1759140638716,-151.0,0.00026874,2]
[388383274,1759140638726,-232.75,0.0002688,10]
[388383275,1759140638736,-33665.7344968,0.0002688,2]
[388383276,1759140638747,-500.0,0.0002688,2]
[388383277,1759140638757,-370000.0,0.0002689,2]
[388383278,1759140638767,-13702.00847967,0.000269,2]
[388383279,1759140638776,-5436.91765833,0.00027,2]
[388383280,1759140638786,-410.0,0.00027092,2]
[388383281,1759140638796,-427.525,0.00027092,2]
[388383282,1759140638806,-4626.0,0.00027092,2]
[388383283,1759140638816,-170.64745109,0.00027096,30]
[388383284,1759140638826,-500.0,0.00027154,2]
[388383285,1759140638836,-168.0,0.00027179,2]
[388383286,1759140638846,-4809.3906424,0.00027189,2]
[388383287,1759140638857,-248.3990749,0.00027199,2]
[388383288,1759140638868,-30484.0033817,0.00027199,2]
[388383289,1759140638879,-8137.2915965,0.00027199,2]
[388383290,1759140638889,-354.828,0.00027234,16]
[388383291,1759140638901,-1000.0,0.00027297,2]
[388383292,1759140638912,-4809.3906424,0.00027307,2]
[388383293,1759140638922,-250.0,0.00027313,2]
[388383294,1759140638932,-250.0,0.00027313,2]
[388383295,1759140638943,-211.492,0.00027313,2]
[388383296,1759140638952,-150.0,0.00027313,2]
[388383297,1759140638962,-150.0,0.00027313,2]
[388383298,1759140638972,-150.345,0.00027313,2]
[388383299,1759140638982,-979.0,0.00027313,2]
[388383300,1759140638991,-647.0,0.00027313,2]
[388383301,1759140639001,-2156.0,0.00027313,2]
[388383302,1759140639012,-13702.00847966,0.00027373,2]
[388383303,1759140639022,-500.0,0.00027373,2]
[388383304,1759140639032,-400.0,0.00027373,2]
[388383305,1759140639041,-500.0,0.00027373,2]
[388383306,1759140639052,-501.9754873,0.00027373,2]
[388383307,1759140639062,-593.27231853,0.00027373,2]
[388383308,1759140639073,-220.30214025,0.00027373,2]
[388383309,1759140639084,-500.0,0.00027373,2]
[388383310,1759140639094,-500.0,0.00027373,2]
[388383311,1759140639105,-500.0,0.00027373,2]
[388383312,1759140639115,-500.0,0.00027373,2]
[388383313,1759140639124,-500.0,0.00027373,2]
[388383314,1759140639134,-500.0,0.00027373,2]
[388383315,1759140639144,-500.0,0.00027373,2]
[388383316,1759140639154,-504.46166083,0.00027373,2]
[388383317,1759140639165,-500.0,0.00027373,2]
[388383318,1759140639175,-500.0,0.00027373,2]
[388383319,1759140639185,-500.0,0.00027373,2]
[388383320,1759140639199,-264.30006476,0.00027373,2]
[388383321,1759140639208,-500.0,0.00027373,2]
[388383322,1759140639218,-500.0,0.00027373,2]
[388383323,1759140639228,-163.72715987,0.00027373,2]
[388383324,1759140639240,-524.83091597,0.00027373,2]
[388383325,1759140639249,-280.32753425,0.00027373,2]
[388383326,1759140639259,-159.65849985,0.00027373,2]
[388383327,1759140639270,-500.0,0.00027373,2]
[388383328,1759140639280,-501.4504098,0.00027373,2]
[388383329,1759140639290,-500.0,0.00027373,2]
[388383330,1759140639300,-500.0,0.00027373,2]
[388383331,1759140639309,-501.45137746,0.00027373,2]
[388383332,1759140639319,-501.78461422,0.00027373,2]
[388383333,1759140639328,-501.54788201,0.00027373,2]
[388383334,1759140639338,-500.0,0.00027373,2]
[388383335,1759140639348,-500.0,0.00027373,2]
[388383336,1759140639358,-500.0,0.00027373,2]
[388383337,1759140639368,-500.0,0.00027373,2]
[388383338,1759140639379,-503.74439795,0.00027373,2]
[388383339,1759140639388,-500.0,0.00027373,2]
[388383340,1759140639398,-500.0,0.00027373,2]
[388383341,1759140639407,-500.0,0.00027373,2]
[388383342,1759140639417,-500.0,0.00027373,2]
[388383343,1759140639425,-158.47877937,0.00027373,2]
[388383344,1759140639434,-502.19731839,0.00027373,2]
[388383345,1759140639442,-500.0,0.00027373,2]
[388383346,1759140639451,-500.0,0.00027373,2]
[388383347,1759140639460,-500.0,0.00027373,2]
[388383348,1759140639469,-500.0,0.00027373,2]
[388383349,1759140639478,-500.0,0.00027373,2]
[388383350,1759140639488,-500.0,0.00027373,2]
[388383351,1759140639497,-500.0,0.00027373,2]
[388383352,1759140639507,-500.0,0.00027373,2]
[388383353,1759140639517,-500.0,0.00027373,2]
[388383354,1759140639526,-500.0,0.00027373,2]
[388383355,1759140639535,-500.0,0.00027373,2]
[388383356,1759140639545,-500.0,0.00027373,2]
[388383357,1759140639554,-500.0,0.00027373,2]
[388383358,1759140639564,-500.0,0.00027373,2]
[388383359,1759140639573,-500.0,0.00027373,2]
[388383360,1759140639582,-500.0,0.00027373,2]
[388383361,1759140639592,-19237.5625696,0.00027387,2]
[388383362,1759140639601,-156.725,0.00027396,2]
[388383363,1759140639611,-500.0,0.00027397,7]
[388383364,1759140639620,-233.87608454,0.00027397,7]
[388383365,1759140639634,-160.0,0.00027397,7]
[388383366,1759140639644,-219.61851054,0.00027397,7]
[388383367,1759140639654,-480.0,0.00027397,7]
[388383368,1759140639664,-520.0,0.00027397,3]
[388383369,1759140639674,-210.37918064,0.00027397,7]
[388383370,1759140639684,-480.0,0.00027397,7]
[388383371,1759140639693,-480.0,0.00027397,7]
[388383372,1759140639703,-503.87,0.00027397,7]
[388383373,1759140639712,-480.0,0.00027397,7]
[388383374,1759140639721,-583.41487089,0.00027397,7]
[388383375,1759140639731,-480.0,0.00027397,7]
[388383376,1759140639740,-480.0,0.00027397,7]
[388383377,1759140639755,-480.0,0.00027397,7]
[388383378,1759140639765,-480.0,0.00027397,7]
[388383379,1759140639774,-480.0,0.00027397,7]
[388383380,1759140639787,-480.88515607,0.00027397,7]
[388383381,1759140639797,-480.54220582,0.00027397,7]
[388383382,1759140640004,-351.26005947,0.00027397,7]
[388383383,1759140640014,-480.0,0.00027397,7]
[388383384,1759140640024,-480.0,0.00027397,7]
[388383385,1759140640033,-480.0,0.00027397,7]
[388383386,1759140640043,-480.0,0.00027397,7]
[388383387,1759140640052,-480.0,0.00027397,7]
[388383388,1759140640062,-200.0,0.00027397,7]
[388383389,1759140640071,-480.0,0.00027397,7]
[388383390,1759140640081,-480.0,0.00027397,7]
[388383391,1759140640090,-655.54,0.00027397,7]
[388383392,1759140640099,-480.0,0.00027397,7]
[388383394,1759140640109,-711.44,0.00027397,7]
[388383396,1759140640118,-480.0,0.00027397,7]
[388383397,1759140640128,-480.0,0.00027397,7]
[388383398,1759140640137,-702.26,0.00027397,7]
[388383399,1759140640147,-480.0,0.00027397,7]
[388383400,1759140640157,-480.0,0.00027397,7]
[388383401,1759140640166,-480.0,0.00027397,7]
[388383402,1759140640176,-480.0,0.00027397,7]
[388383403,1759140640185,-480.0,0.00027397,7]
[388383404,1759140640200,-480.0,0.00027397,7]
[388383405,1759140640209,-635.84,0.00027397,7]
[388383406,1759140640218,-480.0,0.00027397,7]
[388383407,1759140640228,-480.0,0.00027397,7]
[388383408,1759140640239,-480.0,0.00027397,7]
[388383409,1759140640249,-480.0,0.00027397,7]
[388383410,1759140640259,-710.67,0.00027397,7]
[388383411,1759140640269,-480.0,0.00027397,7]
[388383412,1759140640279,-480.0,0.00027397,7]
[388383413,1759140640289,-480.0,0.00027397,7]
[388383414,1759140640298,-480.0,0.00027397,7]
[388383415,1759140640308,-1796.22,0.00027397,7]
[388383416,1759140640317,-680.61,0.00027397,7]
[388383417,1759140640327,-536.43,0.00027397,7]
[388383418,1759140640337,-500.0,0.00027397,7]
[388383419,1759140640347,-687.94,0.00027397,7]
[388383420,1759140640356,-480.0,0.00027397,7]
[388383421,1759140640366,-480.0,0.00027397,7]
[388383422,1759140640376,-480.0,0.00027397,7]
[388383423,1759140640386,-480.0,0.00027397,7]
[388383424,1759140640396,-707.92,0.00027397,7]
[388383425,1759140640406,-583.27183812,0.00027397,7]
[388383426,1759140640416,-480.0,0.00027397,7]
[388383427,1759140640426,-693.37,0.00027397,7]
[388383428,1759140640436,-480.0,0.00027397,7]
[388383429,1759140640445,-480.0,0.00027397,7]
[388383430,1759140640455,-480.0,0.00027397,7]
[388383431,1759140640465,-480.0,0.00027397,7]
[388383432,1759140640475,-517.8,0.00027397,7]
[388383433,1759140640486,-480.0,0.00027397,7]
[388383434,1759140640495,-553.44,0.00027397,7]
[388383435,1759140640505,-480.0,0.00027397,7]
[388383436,1759140640515,-805.98,0.00027397,7]
[388383437,1759140640525,-480.0,0.00027397,7]
[388383438,1759140640534,-661.25,0.00027397,7]
[388383440,1759140640545,-573.84,0.00027397,7]
[388383442,1759140640555,-480.0,0.00027397,7]
[388383444,1759140640564,-480.0,0.00027397,7]
[388383446,1759140640574,-743.83,0.00027397,7]
[388383448,1759140640583,-695.34,0.00027397,7]
[388383450,1759140640594,-480.0,0.00027397,7]
[388383452,1759140640604,-527.56,0.00027397,7]
[388383454,1759140640613,-419.22779601,0.00027397,7]
[388383456,1759140640623,-300.01605822,0.00027397,7]
[388383458,1759140640634,-480.0,0.00027397,7]
[388383460,1759140640643,-480.0,0.00027397,7]
[388383462,1759140640652,-480.0,0.00027397,7]
[388383463,1759140640662,-480.0,0.00027397,7]
[388383465,1759140640671,-480.0,0.00027397,7]
[388383467,1759140640680,-480.0,0.00027397,7]
[388383469,1759140640690,-480.0,0.00027397,7]
[388383471,1759140640699,-480.0,0.00027397,7]
[388383473,1759140640708,-1802.02,0.00027397,7]
[388383475,1759140640718,-480.0,0.00027397,7]
[388383477,1759140640727,-480.0,0.00027397,7]
[388383479,1759140640737,-480.0,0.00027397,7]
[388383481,1759140640747,-480.0,0.00027397,7]
[388383483,1759140640756,-480.0,0.00027397,7]
[388383485,1759140640766,-480.0,0.00027397,7]
[388383486,1759140640775,-480.0,0.00027397,7]
[388383488,1759140640785,-480.0,0.00027397,7]
[388383490,1759140640794,-634.37,0.00027397,7]
[388383492,1759140640803,-299.62065293,0.00027397,7]
[388383494,1759140640812,-480.0,0.00027397,7]
[388383496,1759140640822,-152.992248,0.00027397,7]
[388383498,1759140640831,-151.0,0.00027397,7]
[388383500,1759140640841,-1531.35,0.00027397,7]
[388383502,1759140640850,-802.5,0.00027397,7]
[388383503,1759140640860,-480.0,0.00027397,7]
[388383505,1759140640870,-480.0,0.00027397,7]
[388383507,1759140640881,-652.08,0.00027397,7]
[388383509,1759140640890,-480.0,0.00027397,7]
[388383511,1759140640899,-540.24,0.00027397,7]
[388383513,1759140640909,-480.0,0.00027397,7]
[388383515,1759140640919,-1241.05,0.00027397,7]
[388383517,1759140640928,-480.0,0.00027397,7]
[388383519,1759140640937,-474.14777006,0.00027397,7]
[388383521,1759140640947,-480.0,0.00027397,7]
[388383523,1759140640957,-480.0,0.00027397,7]
[388383525,1759140640967,-605.77,0.00027397,7]
[388383527,1759140640977,-480.0,0.00027397,7]
[388383529,1759140640987,-480.0,0.00027397,7]
[388383531,1759140640996,-775.25,0.00027397,7]
[388383533,1759140641007,-663.34,0.00027397,7]
[388383535,1759140641017,-487.45,0.00027397,7]
[388383537,1759140641026,-480.0,0.00027397,7]
[388383539,1759140641036,-480.0,0.00027397,7]
[388383541,1759140641046,-480.0,0.00027397,7]
[388383543,1759140641055,-480.0,0.00027397,7]
[388383544,1759140641064,-480.0,0.00027397,7]
[388383546,1759140641073,-500.0,0.00027397,7]
[388383548,1759140641084,-589.75,0.00027397,7]
[388383550,1759140641093,-480.0,0.00027397,7]
[388383552,1759140641103,-617.36,0.00027397,7]
[388383554,1759140641114,-686.52,0.00027397,7]
[388383556,1759140641123,-480.0,0.00027397,7]
[388383558,1759140641133,-480.0,0.00027397,7]
[388383560,1759140641143,-207.448469,0.00027397,7]
[388383562,1759140641152,-480.0,0.00027397,7]
[388383564,1759140641162,-539.25905927,0.00027397,7]
[388383566,1759140641172,-207.448469,0.00027397,7]
[388383568,1759140641183,-647.76,0.00027397,7]
[388383570,1759140641196,-480.0,0.00027397,7]
[388383572,1759140641205,-480.0,0.00027397,7]
[388383574,1759140641215,-480.0,0.00027397,7]
[388383575,1759140641225,-207.448469,0.00027397,7]
[388383577,1759140641235,-480.0,0.00027397,7]
[388383579,1759140641246,-207.448469,0.00027397,7]
[388383581,1759140641256,-480.0,0.00027397,7]
[388383583,1759140641268,-480.0,0.00027397,7]
[388383586,1759140641278,-480.0,0.00027397,7]
[388383588,1759140641287,-151.0,0.00027397,7]
[388383589,1759140641297,-480.0,0.00027397,7]
[388383591,1759140641307,-189.40172226,0.00027397,7]
[388383593,1759140641317,-480.0,0.00027397,7]
[388383595,1759140641326,-480.0,0.00027397,7]
[388383597,1759140641336,-480.0,0.00027397,7]
[388383599,1759140641346,-151.0,0.00027397,7]
[388383601,1759140641355,-480.0,0.00027397,7]
[388383603,1759140641365,-575.61,0.00027397,7]
[388383605,1759140641375,-849.36,0.00027397,7]
[388383607,1759140641384,-504.19,0.00027397,7]
[388383609,1759140641394,-480.0,0.00027397,7]
[388383611,1759140641403,-480.0,0.00027397,7]
[388383613,1759140641413,-160.020067,0.00027397,7]
[388383615,1759140641422,-793.49,0.00027397,7]
[388383617,1759140641431,-1369.84,0.00027397,7]
[388383619,1759140641441,-779.05,0.00027397,7]
[388383621,1759140641450,-480.0,0.00027397,7]
[388383622,1759140641459,-480.0,0.00027397,7]
[388383624,1759140641468,-153.200272,0.00027397,7]
[388383626,1759140641478,-480.0,0.00027397,7]
[388383628,1759140641488,-480.0,0.00027397,7]
[388383630,1759140641497,-151.0,0.00027397,7]
[388383632,1759140641507,-151.0,0.00027397,7]
[388383634,1759140641516,-788.51,0.00027397,7]
[388383636,1759140641526,-600.37,0.00027397,7]
[388383638,1759140641535,-826.37,0.00027397,7]
[388383640,1759140641545,-480.0,0.00027397,7]
[388383642,1759140641554,-480.0,0.00027397,7]
[388383644,1759140641564,-607.43,0.00027397,7]
[388383646,1759140641573,-2786.72,0.00027397,7]
[388383648,1759140641582,-480.0,0.00027397,7]
[388383650,1759140641592,-333.07984678,0.00027397,7]
[388383652,1759140641603,-485.27,0.00027397,7]
[388383653,1759140641612,-480.0,0.00027397,7]
[388383655,1759140641621,-151.0,0.00027397,7]
[388383657,1759140641631,-519.24,0.00027397,7]
[388383659,1759140641640,-595.14,0.00027397,7]
[388383661,1759140641649,-480.0,0.00027397,7]
[388383663,1759140641658,-1204.57,0.00027397,7]
[388383665,1759140641668,-151.0,0.00027397,7]
[388383667,1759140641677,-480.0,0.00027397,7]
[388383669,1759140641686,-151.0,0.00027397,7]
[388383671,1759140641696,-480.0,0.00027397,7]
[388383673,1759140641705,-480.0,0.00027397,7]
[388383675,1759140641714,-480.0,0.00027397,7]
[388383677,1759140641723,-244.43081,0.00027397,7]
[388383679,1759140641733,-480.0,0.00027397,7]
[388383681,1759140641743,-480.0,0.00027397,7]
[388383683,1759140641753,-359.281859,0.00027397,7]
[388383685,1759140641762,-359.281859,0.00027397,7]
[388383687,1759140641772,-480.0,0.00027397,7]
[388383688,1759140641781,-359.281859,0.00027397,7]
[388383690,1759140641791,-480.0,0.00027397,7]
[388383692,1759140641800,-359.281859,0.00027397,7]
[388383694,1759140641810,-772.1,0.00027397,7]
[388383696,1759140641820,-786.55,0.00027397,7]
[388383698,1759140641830,-480.0,0.00027397,7]
[388383700,1759140641839,-1515.94,0.00027397,7]
[388383702,1759140641849,-541.44,0.00027397,7]
[388383704,1759140641859,-846.5,0.00027397,7]
[388383706,1759140641869,-518.4,0.00027397,7]
[388383708,1759140641878,-480.0,0.00027397,7]
[388383710,1759140641887,-480.0,0.00027397,7]
[388383712,1759140641897,-480.0,0.00027397,7]
[388383714,1759140641906,-583.85092848,0.00027397,7]
[388383715,1759140641915,-916.04,0.00027397,7]
[388383717,1759140641924,-480.0,0.00027397,7]
[388383718,1759140641934,-593.23,0.00027397,7]
[388383719,1759140641943,-876.54,0.00027397,7]
[388383721,1759140641953,-499.66,0.00027397,7]
[388383723,1759140641962,-613.09,0.00027397,7]
[388383725,1759140641972,-480.0,0.00027397,7]
[388383727,1759140641981,-153.514574,0.00027397,7]
[388383729,1759140641990,-517.25,0.00027397,7]
[388383731,1759140641999,-151.0,0.00027397,7]
[388383733,1759140642009,-480.0,0.00027397,7]
[388383734,1759140642018,-151.0,0.00027397,7]
[388383736,1759140642028,-480.0,0.00027397,7]
[388383738,1759140642037,-480.0,0.00027397,7]
[388383740,1759140642046,-744.34,0.00027397,7]
[388383742,1759140642055,-900.66,0.00027397,7]
[388383744,1759140642064,-855.69,0.00027397,7]
[388383746,1759140642073,-480.0,0.00027397,7]
[388383748,1759140642083,-480.0,0.00027397,7]
[388383750,1759140642092,-480.0,0.00027397,7]
[388383751,1759140642102,-296.18186812,0.00027397,7]
[388383753,1759140642111,-480.0,0.00027397,7]
[388383755,1759140642120,-480.0,0.00027397,7]
[388383757,1759140642130,-151.0,0.00027397,7]
[388383759,1759140642139,-480.0,0.00027397,7]
[388383761,1759140642149,-812.12,0.00027397,7]
[388383763,1759140642158,-151.0,0.00027397,7]
[388383765,1759140642168,-671.24,0.00027397,7]
[388383767,1759140642177,-778.58,0.00027397,7]
[388383769,1759140642186,-856.61,0.00027397,7]
[388383770,1759140642200,-151.0,0.00027397,7]
[388383772,1759140642210,-480.0,0.00027397,7]
[388383774,1759140642220,-480.0,0.00027397,7]
[388383776,1759140642229,-151.0,0.00027397,7]
[388383778,1759140642239,-151.0,0.00027397,7]
[388383780,1759140642249,-151.0,0.00027397,7]
[388383782,1759140642259,-480.0,0.00027397,7]
[388383784,1759140642271,-151.0,0.00027397,7]
[388383786,1759140642280,-151.0,0.00027397,7]
[388383788,1759140642290,-480.0,0.00027397,7]
[388383790,1759140642299,-151.0,0.00027397,7]
[388383792,1759140642308,-480.0,0.00027397,7]
[388383793,1759140642317,-480.0,0.00027397,7]
[388383795,1759140642327,-500.0,0.00027397,7]
[388383797,1759140642336,-2599.12,0.00027397,7]
[388383798,1759140642345,-151.0,0.00027397,7]
[388383800,1759140642355,-2049.74,0.00027397,7]
[388383802,1759140642364,-480.0,0.00027397,7]
[388383804,1759140642374,-768.51,0.00027397,7]
[388383806,1759140642383,-849.31,0.00027397,7]
[388383808,1759140642392,-480.0,0.00027397,7]
[388383814,1759140642444,-756.35,0.00027397,7]
[388383815,1759140642453,-481.57174167,0.00027397,7]
[388383817,1759140642462,-691.2,0.00027397,7]
[388383819,1759140642471,-684.34,0.00027397,7]
[388383821,1759140642480,-1396.83,0.00027397,7]
[388383823,1759140642490,-707.59,0.00027397,7]
[388383825,1759140642499,-681.67,0.00027397,7]
[388383827,1759140642508,-480.0,0.00027397,7]
[388383829,1759140642518,-151.0,0.00027397,7]
[388383830,1759140642527,-825.22,0.00027397,7]
[388383832,1759140642536,-151.0,0.00027397,7]
[388383834,1759140642546,-510.56,0.00027397,7]
[388383836,1759140642555,-1354.4,0.00027397,7]
[388383838,1759140642564,-696.6,0.00027397,7]
[388383840,1759140642574,-151.0,0.00027397,7]
[388383842,1759140642583,-835.45,0.00027397,7]
[388383843,1759140642593,-480.0,0.00027397,7]
[388383845,1759140642603,-480.0,0.00027397,7]
[388383847,1759140642611,-902.91,0.00027397,7]
[388383849,1759140642621,-601.42244226,0.00027397,7]
[388383851,1759140642631,-480.0,0.00027397,7]
[388383853,1759140642640,-480.0,0.00027397,7]
[388383855,1759140642650,-294.966045,0.00027397,7]
[388383857,1759140642660,-300.780714,0.00027397,7]
[388383859,1759140642669,-294.966045,0.00027397,7]
[388383860,1759140642678,-480.0,0.00027397,7]
[388383862,1759140642687,-300.780714,0.00027397,7]
[388383864,1759140642696,-294.966045,0.00027397,7]
[388383866,1759140642705,-1347.56,0.00027397,7]
[388383867,1759140642714,-300.780714,0.00027397,7]
[388383869,1759140642724,-294.966045,0.00027397,7]
[388383871,1759140642733,-300.780714,0.00027397,7]
[388383873,1759140642742,-720.07,0.00027397,7]
[388383874,1759140642751,-480.0,0.00027397,7]
[388383875,1759140642760,-1024.59,0.00027397,7]
[388383876,1759140642770,-943.27,0.00027397,7]
[388383877,1759140642779,-480.0,0.00027397,7]
[388383878,1759140642789,-480.0,0.00027397,7]
[388383879,1759140642798,-480.0,0.00027397,7]
[388383880,1759140642809,-698.9,0.00027397,7]
[388383881,1759140642819,-705.19,0.00027397,7]
[388383882,1759140642829,-481.38,0.00027397,7]
[388383883,1759140642839,-485.97,0.00027397,7]
[388383884,1759140642851,-480.0,0.00027397,7]
[388383885,1759140642862,-480.0,0.00027397,7]
[388383886,1759140642872,-480.0,0.00027397,7]
[388383887,1759140642882,-555.21,0.00027397,7]
[388383888,1759140642891,-1727.23,0.00027397,7]
[388383889,1759140642901,-480.0,0.00027397,7]
[388383890,1759140642910,-480.0,0.00027397,7]
[388383891,1759140642919,-480.0,0.00027397,7]
[388383892,1759140642929,-480.0,0.00027397,7]
[388383893,1759140642938,-480.0,0.00027397,7]
[388383894,1759140642947,-480.0,0.00027397,7]
[388383895,1759140642956,-480.0,0.00027397,7]
[388383896,1759140642966,-151.0,0.00027397,7]
[388383898,1759140642975,-345.41888451,0.00027397,7]
[388383904,1759140643630,-406.84111549,0.00027397,7]
[388383905,1759140643640,-129.15047131,0.00027397,7]
[388384072,1759141668616,26.01554294,0.00018,2]
[388384073,1759141668638,10000.01,0.00018,2]
[388384074,1759141668661,10000.01,0.00018,2]
[388384075,1759141668682,10000.01,0.00018,2]
[388384076,1759141668703,7562.70477329,0.00018,2]
[388384078,1759141672578,1361.28968377,0.00018,2]
[388384087,1759141828489,1076.01554294,0.000252,2]
[388384088,1759141828511,701.49085706,0.000252,2]
[388384157,1759141831747,-500.0,0.00025205,2]
[388384159,1759141831757,-230.229325,0.00025761,2]
[388384161,1759141831766,-1200.0,0.00026679,2]
[388384163,1759141831776,-21719.15512401,0.0002668,2]
[388384165,1759141831785,-160.0,0.00026685,2]
[388384167,1759141831795,-4567.3361599,0.00026742,2]
[388384169,1759141831804,-219.37,0.00026742,2]
[388384171,1759141831813,-1200.0,0.00026756,2]
[388384173,1759141831823,-292.28,0.0002676,10]
[388384174,1759141831833,-243.57,0.0002676,10]
[388384176,1759141831842,-202.98,0.0002676,10]
[388384178,1759141831851,-300.0,0.00026767,2]
[388384180,1759141831861,-300.0,0.00026767,2]
[388384182,1759141831870,-300.0,0.00026767,2]
[388384184,1759141831880,-14377.5232188,0.00026768,2]
[388384186,1759141831890,-394.76843694,0.00026769,2]
[388384188,1759141831899,-500.0,0.00026769,2]
[388384190,1759141831909,-236.20663742,0.00026769,2]
[388384603,1759142900209,262.30837312,0.00024614,2]
[388384604,1759142942714,9036.21076982,0.000252,2]
[388384605,1759142942736,10000.01,0.000252,2]
[388384606,1759142942760,10000.01,0.000252,2]
[388384607,1759142942786,10000.01,0.000252,2]
[388384608,1759142942811,10000.01,0.000252,2]
[388384609,1759142944113,-168.05568648,0.000252,2]
[388384615,1759142992073,948.192233,0.000234,2]
[388384616,1759142992098,149847.5013107,0.000234,2]
[388384651,1759143031854,-168.05568648,0.0002519,2]